[Event "30th NATO Chess-ch 2019"]
[Site "Berlin"]
[Date "2019.09.14"]
[Round "1.9"]
[White "Tammisto, Janek"]
[Black "Papasimakopoulos, Alexandros"]
[Result "0-1"]
[ECO "A46"]
[WhiteElo "1912"]
[BlackElo "2218"]
[Annotator "NA"]
[PlyCount "90"]
[EventDate "2019.09.16"]
[EventType "swiss"]
[EventCountry "GER"]
[SourceTitle "playchess.com"]
[Source "ChessBase"]
[SourceQuality "1"]
[TimeControl "40/7200:1800"]

1. d4 {[%emt 1:59:56]} e6 {[%emt 1:59:56]} 2. Nf3 {[%emt 1:59:38]} Nf6 {[%emt 1:59:49]} 3. Bg5 {[%emt 1:59:42]} c5 {[%emt 1:59:16]} 4. e3 {[%emt 1:59:23]} Qb6 {[%emt 1:59:23]} 5. b3 {[%emt 1:58:15]} Ne4 {[%emt 1:57:13]} 6. c3 {[%emt 1:57:13]} Nxg5 {[%emt 1:52:43]} 7. Nxg5 {[%emt 1:54:35]} h6 {[%emt 1:52:35]} 8. Nf3 {[%emt 1:54:20]} d5 {[%emt 1:53:33]} 9. Bd3 {[%emt 1:50:23]} Nc6 {[%emt 1:50:23]} 10. O-O {[%emt 1:49:14]} Bd6 {[%emt 1:49:14]} 11. Nbd2 {[%emt 1:45:33]} O-O {[%emt 1:42:18]} 12. Rc1 {[%emt 1:44:08]} cxd4 {[%emt 1:40:59]} 13. exd4 {[%emt 1:40:59]} Ba3 {[%emt 1:42:07]} 14. Rb1 {[%emt 1:38:09]} a5 {[%emt 1:37:08]} 15. Ne5 {[%emt 1:32:43]} Nxe5 {[%emt 1:35:09]} 16. dxe5 {[%emt 1:32:41]} Qc7 {[%emt 1:32:41]} 17. c4 {[%emt 1:26:15]} Qxe5 {[%emt 1:26:15]} 18. Nf3 {[%emt 1:21:03]} Qh5 {[%emt 1:21:03]} 19. cxd5 {[%emt 1:30:38]} Qxd5 {[%emt 1:19:18]} 20. Qe2 {[%emt 1:26:07]} g6 {[%emt 1:11:14]} 21. Ne5 {[%emt 1:11:08]} Bd6 {[%emt 1:00:24]} 22. Nc4 {[%emt 1:00:24]} Bc7 {[%emt 0:58:09]} 23. Rfd1 {[%emt 1:00:44]} Qg5 {[%emt 0:56:52]} 24. a4 {[%emt 0:56:52]} b5 {[%emt 0:54:10]} 25. axb5 {[%emt 0:51:13]} Bb7 {[%emt 0:45:19]} 26. f3 {[%emt 0:45:19]} Qxb5 {[%emt 0:47:30]} 27. Kh1 {[%emt 0:45:18]} Qh5 {[%emt 0:43:34]} 28. h3 {[%emt 0:43:34]} Qg5 29. Ne3 {[%emt 0:42:05]} Qf4 {[%emt 0:38:04]} 30. Nf1 {[%emt 0:41:17]} Rab8 {[%emt 0:40:05]} 31. Qe3 {[%emt 0:35:36]} Bd5 {[%emt 0:39:29]} 32. Qxf4 {[%emt 0:33:26]} Bxf4 {[%emt 0:33:26]} 33. Bc4 {[%emt 0:39:19]} Bxc4 {[%emt 0:33:18]} 34. bxc4 {[%emt 0:33:16]} Rxb1 {[%emt 0:38:24]} 35. Rxb1 {[%emt 0:33:10]} a4 {[%emt 0:37:09]} 36. g3 {[%emt 0:32:24]} Be5 {[%emt 0:37:02]} 37. Rb5 {[%emt 0:31:52]} Bc3 {[%emt 0:36:42]} 38. Ne3 {[%emt 0:26:36]} a3 {[%emt 6:12:12]} 39. Nc2 {[%emt 0:35:35]} a2 {[%emt 0:35:22]} 40. Rb3 {[%emt 0:35:22]} a1=Q+ {[%emt 0:34:23]} 41. Nxa1 {[%emt 0:26:11]} Bxa1 {[%emt 0:34:17]} 42. Ra3 {[%emt 0:25:32]} Bd4 {[%emt 0:25:32]} 43. Ra2 {[%emt 0:34:07]} Rb8 {[%emt 0:34:00]} 44. Kg2 {[%emt 0:23:40]} Rb2+ {[%emt 0:23:40]} 45. Rxb2 {[%emt 0:23:31]} Bxb2 {[%emt 0:23:31]} 0-1

[Event "30th NATO Chess-ch 2019"]
[Site "Berlin"]
[Date "2019.09.14"]
[Round "1.10"]
[White "Pietruszewski, Marcin"]
[Black "Noviks, Maris"]
[Result "1-0"]
[ECO "C60"]
[WhiteElo "2215"]
[BlackElo "1905"]
[Annotator "NA"]
[PlyCount "61"]
[EventDate "2019.09.16"]
[EventType "swiss"]
[EventCountry "GER"]
[SourceTitle "playchess.com"]
[Source "ChessBase"]
[SourceQuality "1"]
[TimeControl "40/7200:1800"]

1. e4 {[%emt 1:59:48]} e5 {[%emt 1:59:48]} 2. Nf3 {[%emt 1:59:40]} Nc6 {[%emt 1:59:19]} 3. Bb5 {[%emt 1:58:32]} g6 {[%emt 1:58:32]} 4. d4 {[%emt 1:52:24]} exd4 {[%emt 1:52:56]} 5. Bg5 {[%emt 1:52:16]} Be7 {[%emt 1:52:16]} 6. Bxe7 {[%emt 1:49:54]} Qxe7 {[%emt 1:36:27]} 7. Bxc6 {[%emt 1:12:33]} dxc6 {[%emt 1:29:17]} 8. Qxd4 {[%emt 1:12:23]} Nf6 {[%emt 1:24:31]} 9. Nc3 {[%emt 0:53:46]} Bd7 {[%emt 0:53:46]} 10. O-O-O {[%emt 0:49:11]} c5 {[%emt 1:09:18]} 11. Qe5 {[%emt 1:09:18]} Qxe5 {[%emt 0:59:42]} 12. Nxe5 {[%emt 0:43:05]} Be6 {[%emt 0:43:05]} 13. Nb5 {[%emt 0:30:27]} Rc8 {[%emt 0:30:27]} 14. Nxa7 {[%emt 0:47:46]} Ra8 {[%emt 0:46:44]} 15. Nb5 {[%emt 0:23:06]} Rxa2 {[%emt 0:23:06]} 16. f3 {[%emt 0:19:00]} Ra1+ {[%emt 0:42:51]} 17. Kd2 {[%emt 0:42:51]} Rxd1+ {[%emt 0:41:38]} 18. Rxd1 {[%emt 0:18:54]} Ke7 {[%emt 0:37:28]} 19. Nxc7 {[%emt 0:17:53]} Bc8 {[%emt 0:35:01]} 20. Ke3 {[%emt 0:17:27]} h5 {[%emt 0:32:43]} 21. h4 {[%emt 0:16:41]} Rg8 {[%emt 0:16:41]} 22. Kf4 {[%emt 0:16:14]} Rf8 {[%emt 0:29:15]} 23. Rd2 {[%emt 0:29:15]} Nd7 {[%emt 0:26:02]} 24. Nd5+ {[%emt 0:12:20]} Ke6 {[%emt 0:24:26]} 25. Nc4 {[%emt 0:11:41]} f6 {[%emt 0:11:41]} 26. Nc7+ {[%emt 0:10:57]} Ke7 {[%emt 0:10:57]} 27. Rd6 {[%emt 0:15:20]} b6 {[%emt 0:11:09]} 28. Nd5+ {[%emt 0:11:09]} Ke8 {[%emt 0:09:42]} 29. Ncxb6 {[%emt 0:08:53]} Kd8 {[%emt 0:05:31]} 30. Nxd7 {[%emt 0:05:31]} Bxd7 31. Rxf6 {[%emt 0:05:49]} 1-0

[Event "30th NATO Chess-ch 2019"]
[Site "Berlin"]
[Date "2019.09.14"]
[Round "1.11"]
[White "De Cat, Ben"]
[Black "Sycz, Dariusz"]
[Result "1/2-1/2"]
[ECO "D00"]
[WhiteElo "1891"]
[BlackElo "2215"]
[Annotator "NA"]
[PlyCount "162"]
[EventDate "2019.09.16"]
[EventType "swiss"]
[EventCountry "GER"]
[SourceTitle "playchess.com"]
[Source "ChessBase"]
[SourceQuality "1"]
[TimeControl "40/7200:1800"]

1. d4 {[%emt 1:59:55]} d5 {[%emt 1:59:55]} 2. Nc3 {[%emt 1:59:26]} Nf6 {[%emt 1:59:40]} 3. Bf4 {[%emt 1:58:55]} e6 {[%emt 1:58:55]} 4. e3 {[%emt 1:49:00]} Be7 {[%emt 1:58:31]} 5. Nf3 {[%emt 1:47:33]} O-O {[%emt 1:46:37]} 6. h3 {[%emt 1:53:05]} c5 7. Be2 {[%emt 1:50:48]} a6 {[%emt 1:50:48]} 8. Ne5 {[%emt 1:49:59]} b5 {[%emt 1:49:59]} 9. Bf3 {[%emt 1:49:29]} Bb7 {[%emt 1:49:29]} 10. O-O {[%emt 1:29:05]} Qb6 {[%emt 1:48:02]} 11. Ne2 {[%emt 1:24:58]} Nc6 {[%emt 1:22:45]} 12. Nxc6 {[%emt 1:45:33]} Qxc6 {[%emt 1:45:33]} 13. c3 {[%emt 1:44:23]} Nd7 {[%emt 1:16:09]} 14. b3 {[%emt 1:16:09]} c4 {[%emt 1:39:29]} 15. b4 {[%emt 1:08:09]} a5 {[%emt 1:07:22]} 16. a3 {[%emt 1:07:22]} axb4 {[%emt 1:05:41]} 17. axb4 {[%emt 1:38:00]} Rxa1 {[%emt 1:05:03]} 18. Qxa1 {[%emt 1:05:03]} Ra8 {[%emt 1:04:58]} 19. Qb2 {[%emt 1:33:50]} Qa6 {[%emt 1:33:08]} 20. Bc7 {[%emt 1:33:08]} Qa2 {[%emt 1:00:09]} 21. Qc1 {[%emt 1:00:09]} Ra3 {[%emt 0:55:51]} 22. Rd1 {[%emt 1:27:44]} h6 {[%emt 0:48:29]} 23. g3 {[%emt 0:48:29]} Nf6 {[%emt 0:45:05]} 24. Kf1 {[%emt 0:45:05]} Qb3 {[%emt 1:21:02]} 25. Rd2 {[%emt 0:38:28]} Qa4 {[%emt 0:34:52]} 26. Rb2 {[%emt 1:14:55]} Nd7 {[%emt 0:22:56]} 27. Ba5 {[%emt 1:12:21]} Bf6 {[%emt 0:20:27]} 28. Ng1 {[%emt 0:20:27]} Ra1 {[%emt 1:06:42]} 29. Rb1 {[%emt 1:06:29]} Ra2 {[%emt 1:06:29]} 30. Bd1 {[%emt 1:02:38]} Qa3 {[%emt 1:02:38]} 31. Qxa3 {[%emt 1:01:43]} Rxa3 {[%emt 0:18:36]} 32. Ne2 {[%emt 1:01:09]} e5 {[%emt 1:01:09]} 33. Ke1 {[%emt 0:59:47]} Nb8 {[%emt 0:59:47]} 34. Bc7 {[%emt 0:54:56]} Nc6 {[%emt 0:54:56]} 35. f4 {[%emt 0:54:33]} exd4 {[%emt 0:11:39]} 36. exd4 {[%emt 0:11:39]} Bc8 {[%emt 0:54:10]} 37. g4 {[%emt 0:53:22]} Bh4+ {[%emt 0:07:31]} 38. Kd2 {[%emt 0:07:31]} Ra2+ {[%emt 0:52:20]} 39. Bc2 {[%emt 0:51:26]} h5 {[%emt 0:51:26]} 40. Rg1 {[%emt 0:05:18]} hxg4 {[%emt 0:50:34]} 41. hxg4 {[%emt 0:50:06]} Be7 {[%emt 0:50:06]} 42. f5 {[%emt 0:48:39]} g6 {[%emt 0:23:50]} 43. Bf4 {[%emt 1:08:25]} Kg7 {[%emt 1:08:25]} 44. Be3 {[%emt 1:04:22]} Bxb4 {[%emt 0:16:32]} 45. Rb1 {[%emt 0:58:20]} Be7 {[%emt 0:11:43]} 46. Rxb5 {[%emt 0:52:03]} gxf5 {[%emt 0:11:35]} 47. Nc1 {[%emt 0:51:35]} Ra5 {[%emt 0:11:16]} 48. Rb6 {[%emt 0:49:33]} Ra6 {[%emt 0:49:33]} 49. Rxa6 {[%emt 0:48:50]} Bxa6 {[%emt 0:09:19]} 50. Bxf5 {[%emt 0:48:26]} Bd6 {[%emt 0:08:29]} 51. Ne2 {[%emt 0:08:29]} Ne7 {[%emt 0:08:23]} 52. Bc2 {[%emt 0:44:09]} Bc8 {[%emt 0:08:13]} 53. g5 {[%emt 0:43:46]} Bf5 {[%emt 0:43:46]} 54. Ba4 {[%emt 0:41:04]} Kg6 {[%emt 0:41:04]} 55. Be8 {[%emt 0:39:46]} Be6 {[%emt 0:06:20]} 56. Bf4 {[%emt 0:38:11]} Bxf4+ {[%emt 0:06:01]} 57. Nxf4+ {[%emt 0:06:01]} Kf5 {[%emt 0:05:58]} 58. Ke3 {[%emt 0:36:25]} Kxg5 {[%emt 0:05:37]} 59. Nxe6+ {[%emt 0:05:37]} fxe6 {[%emt 0:05:34]} 60. Bf7 {[%emt 0:05:34]} Kf6 {[%emt 0:05:32]} 61. Be8 Nf5+ {[%emt 0:05:30]} 62. Kd2 {[%emt 0:05:30]} Nd6 {[%emt 0:05:27]} 63. Bd7 {[%emt 0:05:27]} Ne4+ {[%emt 0:05:24]} 64. Kc2 {[%emt 0:30:41]} Ng5 {[%emt 0:04:57]} 65. Kd2 {[%emt 0:29:47]} Ke7 {[%emt 0:04:47]} 66. Ba4 {[%emt 0:29:07]} Ne4+ {[%emt 0:04:42]} 67. Kc2 {[%emt 0:28:56]} Kd6 {[%emt 0:28:56]} 68. Be8 {[%emt 0:28:31]} Ke7 {[%emt 0:04:32]} 69. Bc6 {[%emt 0:04:32]} Kf6 {[%emt 0:27:45]} 70. Bd7 {[%emt 0:27:30]} e5 {[%emt 0:03:56]} 71. dxe5+ {[%emt 0:26:54]} Kxe5 {[%emt 0:03:55]} 72. Be8 {[%emt 0:03:55]} d4 {[%emt 0:03:17]} 73. cxd4+ {[%emt 0:25:52]} Kxd4 {[%emt 0:03:15]} 74. Bf7 {[%emt 0:25:18]} c3 {[%emt 0:03:12]} 75. Bg6 {[%emt 0:25:05]} Nd6 {[%emt 0:25:05]} 76. Bh7 {[%emt 0:24:41]} Nc4 {[%emt 0:03:06]} 77. Kb3 {[%emt 0:03:06]} Ne3 {[%emt 0:03:00]} 78. Bg6 {[%emt 0:23:04]} Nd5 {[%emt 0:23:04]} 79. Bh7 {[%emt 0:22:46]} Ke3 {[%emt 0:02:51]} 80. Kc4 {[%emt 0:21:53]} Nf6 81. Kxc3 {[%emt 0:21:41]} Nxh7 {[%emt 0:02:09]} 1/2-1/2

[Event "30th NATO Chess-ch 2019"]
[Site "Berlin"]
[Date "2019.09.14"]
[Round "1.12"]
[White "Valeinis, Janis"]
[Black "Demjen, Attila"]
[Result "1-0"]
[ECO "B08"]
[WhiteElo "2206"]
[BlackElo "1889"]
[Annotator "NA"]
[PlyCount "38"]
[EventDate "2019.09.16"]
[EventType "swiss"]
[EventCountry "GER"]
[SourceTitle "playchess.com"]
[Source "ChessBase"]
[SourceQuality "1"]
[TimeControl "40/7200:1800"]

1. d4 {[%emt 2:00:00]} Nf6 {[%emt 1:59:48]} 2. Nc3 {[%emt 1:59:48]} g6 {[%emt 1:58:50]} 3. e4 {[%emt 1:55:29]} d6 {[%emt 1:58:44]} 4. Nf3 {[%emt 1:58:44]} Bg7 {[%emt 1:58:25]} 5. Be2 {[%emt 1:54:16]} O-O {[%emt 1:58:13]} 6. h3 {[%emt 1:58:13]} e5 {[%emt 1:53:19]} 7. dxe5 {[%emt 1:46:23]} dxe5 {[%emt 1:48:12]} 8. Qxd8 {[%emt 1:46:19]} Rxd8 {[%emt 1:46:19]} 9. Bg5 {[%emt 1:46:14]} Re8 {[%emt 1:39:38]} 10. O-O-O {[%emt 1:45:57]} c6 {[%emt 1:45:57]} 11. Nxe5 {[%emt 1:20:51]} h6 {[%emt 1:40:32]} 12. Bf4 {[%emt 1:32:16]} Nbd7 {[%emt 1:32:16]} 13. Nxd7 {[%emt 0:35:32]} Nxe4 {[%emt 0:18:15]} 14. Nxe4 {[%emt 1:26:26]} Rxe4 {[%emt 0:18:07]} 15. Be3 {[%emt 0:18:07]} f5 {[%emt 0:16:12]} 16. Nc5 {[%emt 1:25:28]} Re8 {[%emt 0:14:35]} 17. Bf3 {[%emt 0:14:35]} Bf8 18. Z0 Re4 19. Nd3 Z0 {Bc1} 1-0

[Event "30th NATO Chess-ch 2019"]
[Site "Berlin"]
[Date "2019.09.14"]
[Round "1.13"]
[White "Wagenaar, Harm Theo"]
[Black "Andersen, Hans-Christoph"]
[Result "0-1"]
[ECO "A80"]
[WhiteElo "1879"]
[BlackElo "2201"]
[Annotator "ChessBase"]
[PlyCount "138"]
[EventDate "2019.09.16"]
[EventType "swiss"]
[EventCountry "GER"]
[SourceTitle "playchess.com"]
[Source "ChessBase"]
[SourceQuality "1"]
[TimeControl "40/7200:1800"]

1. d4 {[%emt 1:59:52]} f5 {[%emt 1:59:52]} 2. Bg5 {[%emt 1:59:20]} g6 {[%emt 1:58:44]} 3. Nd2 {[%emt 1:58:44]} Bg7 {[%emt 1:58:56]} 4. e4 {[%emt 1:58:48]} fxe4 {[%emt 1:57:27]} 5. Nxe4 {[%emt 1:58:38]} d5 {[%emt 1:56:54]} 6. Nc5 {[%emt 1:58:03]} b6 {[%emt 1:56:15]} 7. Nb3 {[%emt 1:57:54]} Nh6 {[%emt 1:57:54]} 8. Nf3 {[%emt 1:56:29]} Nf7 {[%emt 1:49:38]} 9. Bh4 {[%emt 1:51:14]} O-O {[%emt 1:40:12]} 10. Be2 {[%emt 1:49:27]} Nd7 {[%emt 0:57:50]} 11. c3 {[%emt 1:42:31]} Bb7 {[%emt 0:48:34]} 12. O-O {[%emt 0:48:34]} Qe8 {[%emt 0:39:38]} 13. Re1 {[%emt 0:39:38]} e5 {[%emt 0:37:44]} 14. dxe5 {[%emt 1:28:29]} Nfxe5 {[%emt 0:35:54]} 15. Nbd4 {[%emt 1:22:30]} Qf7 {[%emt 0:24:10]} 16. Ng5 {[%emt 0:24:10]} Qf4 {[%emt 0:23:47]} 17. Ngf3 {[%emt 1:08:54]} Qf7 {[%emt 0:15:48]} 18. Ng5 Qf4 {[%emt 0:15:44]} 19. Ngf3 {[%emt 1:07:48]} Rae8 {[%emt 0:13:05]} 20. Bg3 {[%emt 1:03:16]} Qf7 {[%emt 0:10:13]} 21. Nxe5 {[%emt 0:10:13]} Bxe5 {[%emt 0:09:34]} 22. Rf1 {[%emt 0:46:31]} a6 {[%emt 0:08:42]} 23. Bxe5 {[%emt 0:44:29]} Nxe5 {[%emt 0:08:38]} 24. Nf3 {[%emt 0:08:38]} Nd7 {[%emt 0:07:53]} 25. Qd2 {[%emt 0:41:08]} Nc5 {[%emt 0:41:08]} 26. Rae1 {[%emt 0:07:20]} Ne4 {[%emt 0:06:43]} 27. Qc2 {[%emt 0:37:24]} c5 {[%emt 0:06:28]} 28. Bd3 {[%emt 0:36:07]} Nd6 {[%emt 0:05:30]} 29. Rxe8 Rxe8 {[%emt 0:05:26]} 30. Re1 {[%emt 0:26:01]} Rxe1+ {[%emt 0:26:01]} 31. Nxe1 {[%emt 0:25:59]} Qe6 {[%emt 0:25:59]} 32. Qe2 {[%emt 0:03:21]} Qxe2 {[%emt 0:03:04]} 33. Bxe2 {[%emt 0:23:53]} Kf7 {[%emt 0:02:18]} 34. f4 {[%emt 0:02:18]} a5 {[%emt 0:01:55]} 35. Nf3 {[%emt 0:19:24]} Bc8 {[%emt 0:01:16]} 36. Ne5+ {[%emt 0:17:08]} Kf6 {[%emt 0:01:08]} 37. Kf2 {[%emt 0:14:44]} Nf7 {[%emt 0:14:44]} 38. Ng4+ {[%emt 0:13:05]} Ke7 {[%emt 0:00:35]} 39. Ne3 {[%emt 0:00:35]} Kd6 {[%emt 0:00:14]} 40. Bf3 {[%emt 0:00:14]} Be6 {[%emt 0:00:04]} 41. a3 {[%emt 0:10:02]} d4 {[%emt 0:17:49]} 42. cxd4 {[%emt 0:37:32]} cxd4 {[%emt 0:17:48]} 43. Nc2 {[%emt 0:36:58]} Kc5 {[%emt 0:17:43]} 44. Be2 {[%emt 0:33:12]} Bf5 {[%emt 0:14:43]} 45. Ne1 {[%emt 0:32:04]} Nd6 {[%emt 0:13:12]} 46. Nd3+ {[%emt 0:13:12]} Kc4 {[%emt 0:08:49]} 47. Nc1+ {[%emt 0:28:08]} Kc5 {[%emt 0:05:05]} 48. b3 {[%emt 0:05:05]} Ne4+ {[%emt 0:04:32]} 49. Ke1 {[%emt 0:25:43]} Nc3 {[%emt 0:04:30]} 50. Nd3+ {[%emt 0:22:49]} Kd5 {[%emt 0:22:49]} 51. g4 {[%emt 0:04:27]} Nxe2 {[%emt 0:02:53]} 52. gxf5 {[%emt 0:19:23]} Nc3 {[%emt 0:16:09]} 53. a4 {[%emt 0:15:26]} Ke4 {[%emt 0:02:47]} 54. Kd2 {[%emt 0:15:04]} Nd5 {[%emt 0:02:41]} 55. Nf2+ {[%emt 0:13:14]} Kxf4 {[%emt 0:02:40]} 56. Kd3 {[%emt 0:12:40]} Ke5 {[%emt 0:02:34]} 57. Kc4 {[%emt 0:10:49]} Nc7 {[%emt 0:02:25]} 58. Kd3 {[%emt 0:02:25]} Kd5 {[%emt 0:02:12]} 59. h4 {[%emt 0:04:59]} Ne6 {[%emt 0:02:10]} 60. Nh3 {[%emt 0:04:48]} Nc5+ {[%emt 0:02:05]} 61. Kc2 {[%emt 0:04:41]} Ke5 {[%emt 0:01:52]} 62. Ng1 {[%emt 0:04:03]} Kf4 {[%emt 0:01:45]} 63. Ne2+ {[%emt 0:03:36]} Ke3 {[%emt 0:01:43]} 64. Nc1 {[%emt 0:03:31]} d3+ {[%emt 0:01:36]} 65. Kd1 {[%emt 0:03:29]} d2 {[%emt 0:01:30]} 66. Na2 {[%emt 0:02:47]} Nxb3 {[%emt 0:01:29]} 67. Nc3 {[%emt 0:02:46]} Kd3 {[%emt 0:01:03]} 68. Nd5 {[%emt 0:02:44]} Nc5 {[%emt 0:00:55]} 69. Nxb6 {[%emt 0:02:37]} Ne4 {[%emt 0:00:47]} 0-1

[Event "30th NATO Chess-ch 2019"]
[Site "Berlin"]
[Date "2019.09.14"]
[Round "1.14"]
[White "Werksma, Arie"]
[Black "Kocur, Marc"]
[Result "1-0"]
[ECO "B00"]
[WhiteElo "2197"]
[BlackElo "1878"]
[Annotator "NA"]
[PlyCount "81"]
[EventDate "2019.09.16"]
[EventType "swiss"]
[EventCountry "GER"]
[SourceTitle "playchess.com"]
[Source "ChessBase"]
[SourceQuality "1"]
[TimeControl "40/7200:1800"]

1. e4 {[%emt 2:00:00]} a6 2. d4 {[%emt 2:00:00]} b5 {[%emt 1:59:45]} 3. Bd3 {[%emt 1:59:25]} Bb7 {[%emt 1:59:16]} 4. Nf3 {[%emt 1:59:16]} Nf6 {[%emt 1:58:25]} 5. Qe2 {[%emt 1:58:56]} e6 {[%emt 1:57:57]} 6. O-O {[%emt 1:54:55]} c5 {[%emt 1:54:55]} 7. c3 {[%emt 1:52:24]} c4 {[%emt 1:52:19]} 8. Bc2 {[%emt 1:52:19]} d5 {[%emt 1:50:14]} 9. e5 {[%emt 1:50:14]} Nfd7 {[%emt 1:50:01]} 10. Bg5 {[%emt 1:39:01]} Be7 {[%emt 1:39:01]} 11. Bxe7 {[%emt 1:38:38]} Qxe7 {[%emt 1:38:38]} 12. Nbd2 {[%emt 1:48:01]} Nc6 {[%emt 1:38:35]} 13. b3 {[%emt 1:32:21]} O-O {[%emt 1:32:17]} 14. Qe3 {[%emt 1:25:07]} cxb3 15. axb3 Rfc8 {[%emt 1:10:56]} 16. Bd3 {[%emt 1:14:02]} Nf8 {[%emt 1:05:19]} 17. b4 {[%emt 1:04:55]} Nb8 {[%emt 1:04:55]} 18. Nb3 {[%emt 1:03:40]} Nbd7 {[%emt 0:57:18]} 19. Nc5 {[%emt 0:56:30]} Nxc5 {[%emt 0:56:30]} 20. dxc5 {[%emt 0:46:47]} Re8 {[%emt 0:56:23]} 21. Nd4 {[%emt 0:56:11]} Rac8 {[%emt 0:24:30]} 22. f4 {[%emt 0:54:11]} f6 {[%emt 0:23:09]} 23. Rfe1 {[%emt 0:53:41]} f5 {[%emt 0:19:45]} 24. Ra5 {[%emt 0:51:16]} Rc7 {[%emt 0:51:16]} 25. Be2 {[%emt 0:50:45]} Kh8 {[%emt 0:16:39]} 26. g3 {[%emt 0:32:42]} Bc8 {[%emt 0:32:42]} 27. Rea1 {[%emt 0:32:19]} Nd7 {[%emt 0:13:30]} 28. h3 {[%emt 0:28:59]} Nb8 {[%emt 0:11:42]} 29. Kh2 {[%emt 0:28:54]} Nc6 {[%emt 0:09:40]} 30. R5a2 {[%emt 0:28:40]} Rg8 {[%emt 0:08:21]} 31. h4 {[%emt 0:18:49]} g6 {[%emt 0:08:14]} 32. Kg1 {[%emt 0:16:56]} Nd8 {[%emt 0:16:56]} 33. Kf2 {[%emt 0:16:46]} Nf7 {[%emt 0:06:14]} 34. Rxa6 {[%emt 0:13:53]} Bxa6 {[%emt 0:06:08]} 35. Rxa6 {[%emt 0:13:52]} g5 {[%emt 0:04:47]} 36. Rxe6 {[%emt 0:12:38]} Qd8 {[%emt 0:02:39]} 37. hxg5 {[%emt 0:02:39]} Ra7 {[%emt 0:11:31]} 38. Rf6 {[%emt 0:11:23]} Qe8 {[%emt 0:00:15]} 39. e6 {[%emt 0:09:30]} Nxg5 {[%emt 0:00:12]} 40. fxg5 {[%emt 0:00:12]} Ra2 {[%emt 0:00:10]} 41. Qe5 {[%emt 0:00:10]} 1-0

[Event "30th NATO Chess-ch 2019"]
[Site "Berlin"]
[Date "2019.09.14"]
[Round "1.15"]
[White "Glibert, Stephane"]
[Black "Wang, Eigen"]
[Result "0-1"]
[ECO "C00"]
[WhiteElo "1865"]
[BlackElo "2193"]
[Annotator "NA"]
[PlyCount "64"]
[EventDate "2019.09.16"]
[EventType "swiss"]
[EventCountry "GER"]
[SourceTitle "playchess.com"]
[Source "ChessBase"]
[SourceQuality "1"]
[TimeControl "40/7200:1800"]

1. e4 {[%emt 1:59:54]} e6 {[%emt 1:59:53]} 2. Nf3 {[%emt 1:59:32]} d5 {[%emt 1:59:32]} 3. Nc3 {[%emt 1:59:45]} Nf6 {[%emt 1:59:32]} 4. d3 {[%emt 1:59:32]} Be7 {[%emt 1:58:18]} 5. Bg5 {[%emt 1:58:18]} h6 {[%emt 1:56:46]} 6. Bh4 {[%emt 1:44:32]} c5 {[%emt 1:44:32]} 7. Qd2 {[%emt 1:53:30]} Nc6 {[%emt 1:51:18]} 8. O-O-O {[%emt 1:22:08]} d4 {[%emt 1:49:10]} 9. Bxf6 {[%emt 1:17:37]} Bxf6 {[%emt 1:48:35]} 10. Ne2 {[%emt 1:16:45]} e5 {[%emt 1:16:45]} 11. Kb1 {[%emt 1:45:53]} Be6 {[%emt 1:14:26]} 12. Nc1 {[%emt 1:08:37]} b5 {[%emt 1:08:37]} 13. h4 {[%emt 0:56:32]} c4 {[%emt 1:36:37]} 14. g3 {[%emt 0:48:31]} Qd7 {[%emt 1:32:53]} 15. Be2 {[%emt 1:32:53]} Rc8 {[%emt 1:28:59]} 16. c3 {[%emt 0:26:59]} Qb7 {[%emt 1:18:50]} 17. cxd4 {[%emt 0:24:18]} exd4 {[%emt 0:24:18]} 18. e5 {[%emt 1:18:04]} c3 {[%emt 1:13:19]} 19. Qf4 {[%emt 0:17:44]} Nxe5 {[%emt 1:09:30]} 20. Rde1 {[%emt 0:13:36]} Nc4 {[%emt 0:56:56]} 21. Nb3 {[%emt 0:10:03]} O-O {[%emt 0:10:03]} 22. Nfxd4 {[%emt 0:06:01]} Nxb2 {[%emt 0:41:10]} 23. Nxe6 {[%emt 0:04:28]} c2+ {[%emt 0:40:08]} 24. Kc1 {[%emt 0:04:25]} fxe6 {[%emt 0:39:43]} 25. Qe3 {[%emt 0:39:43]} Qa6 {[%emt 0:03:52]} 26. Bg4 {[%emt 0:03:11]} Kh8 {[%emt 0:28:01]} 27. Bxe6 {[%emt 0:02:44]} Qa3 {[%emt 0:20:00]} 28. Kd2 {[%emt 0:02:15]} Bc3+ {[%emt 0:19:22]} 29. Ke2 {[%emt 0:01:58]} Bxe1 {[%emt 0:01:58]} 30. Bxc8 {[%emt 0:01:51]} Nd1 {[%emt 0:14:39]} 31. Qc1 {[%emt 0:00:31]} Rxf2+ {[%emt 0:14:07]} 32. Kxe1 {[%emt 0:00:23]} Qe7+ {[%emt 0:00:23]} 0-1

[Event "30th NATO Chess-ch 2019"]
[Site "Berlin"]
[Date "2019.09.14"]
[Round "1.16"]
[White "Everett, Elijah"]
[Black "Adolfssen, Rico"]
[Result "1-0"]
[ECO "B06"]
[WhiteElo "2187"]
[BlackElo "1864"]
[Annotator "NA"]
[PlyCount "53"]
[EventDate "2019.09.16"]
[EventType "swiss"]
[EventCountry "GER"]
[SourceTitle "playchess.com"]
[Source "ChessBase"]
[SourceQuality "1"]
[TimeControl "40/7200:1800"]

1. e4 {[%emt 2:00:00]} g6 {[%emt 1:59:56]} 2. d4 {[%emt 1:59:48]} Bg7 {[%emt 1:59:37]} 3. Nc3 {[%emt 1:59:40]} d6 {[%emt 1:58:49]} 4. f4 {[%emt 1:58:49]} Nd7 {[%emt 1:57:49]} 5. Nf3 {[%emt 1:57:49]} b6 {[%emt 1:53:45]} 6. Bd3 {[%emt 1:55:29]} c5 {[%emt 1:55:29]} 7. d5 {[%emt 1:50:42]} Bb7 {[%emt 1:48:31]} 8. O-O {[%emt 1:47:56]} Ngf6 {[%emt 1:47:43]} 9. Bc4 {[%emt 1:33:19]} O-O 10. Qe2 {[%emt 1:40:02]} a6 {[%emt 1:32:07]} 11. a4 {[%emt 1:32:07]} Qc7 {[%emt 1:28:38]} 12. Re1 {[%emt 1:28:38]} Ng4 {[%emt 1:22:39]} 13. h3 {[%emt 1:20:00]} Bd4+ {[%emt 1:20:30]} 14. Nxd4 {[%emt 1:17:59]} cxd4 {[%emt 1:20:16]} 15. Nd1 {[%emt 1:15:55]} Ngf6 {[%emt 1:15:55]} 16. b3 {[%emt 1:14:02]} b5 {[%emt 1:05:24]} 17. axb5 {[%emt 1:11:07]} axb5 {[%emt 1:05:15]} 18. Rxa8 {[%emt 1:10:56]} Rxa8 19. Bxb5 Ra2 {[%emt 1:10:56]} 20. Bc4 {[%emt 0:58:41]} Qa5 {[%emt 1:05:45]} 21. b4 {[%emt 1:03:56]} Qa7 {[%emt 0:40:23]} 22. Bxa2 {[%emt 0:40:23]} Qxa2 {[%emt 0:40:02]} 23. c4 {[%emt 0:40:02]} Qa7 {[%emt 0:36:18]} 24. e5 {[%emt 0:57:27]} dxe5 {[%emt 0:57:27]} 25. fxe5 {[%emt 0:57:20]} Nh5 {[%emt 0:57:20]} 26. e6 {[%emt 0:56:54]} Ng3 {[%emt 0:31:37]} 27. exf7+ {[%emt 0:56:19]} 1-0